fUSD/lending_fUSD_20240629
["ID","MTS","AMOUNT","RATE_DAILY","PERIOD"]
[330627999,1719651032006,-814.90754347,0.0001279,2]
[330628000,1719651032016,-1526.85,0.0001279,2]
[330628001,1719651032027,-4462.52367967,0.0001279,2]
[330628002,1719651032042,-1420.86797097,0.0001279,2]
[330628003,1719651032058,-517.9614323,0.0001279,2]
[330628004,1719651032070,-820.87408869,0.0001279,2]
[330628005,1719651032084,-2783.40559046,0.0001279,2]
[330628006,1719651032099,-1588.11472304,0.0001279,2]
[330628007,1719651032109,-1171.2015779,0.0001279,2]
[330628008,1719651032118,-841.09438141,0.00012863,2]
[330628009,1719651032129,-103.45561859,0.00012863,2]
[330628010,1719651032139,-250.0,0.00012974,2]
[330628011,1719651032148,-1000.0,0.00013095,2]
[330628012,1719651032159,-200.0,0.00013226,2]
[330628013,1719651032167,-5658.0354,0.00013352,2]
[330628014,1719651032177,-2500.0,0.00013352,2]
[330628015,1719651032186,-10994.0339,0.00013372,2]
[330628016,1719651032195,-150.0,0.00013397,2]
[330628017,1719651032204,-1610.78,0.00013413,2]
[330628018,1719651032213,-576.95,0.00013513,2]
[330628019,1719651032222,-587.0,0.00013517,2]
[330628020,1719651032231,-150.0,0.00013642,2]
[330628021,1719651032239,-1433.13703057,0.00013643,2]
[330628022,1719651032249,-6079.2,0.00013643,2]
[330628023,1719651032258,-200.0,0.00013699,2]
[330628024,1719651032267,-256.01,0.00013699,2]
[330628025,1719651032276,-184.28825684,0.00013699,2]
[330628026,1719651032285,-168.99,0.00013743,2]
[330628027,1719651032295,-210.93790146,0.0001377,2]
[330628028,1719651032304,-6940.10106843,0.0001379,2]
[330628029,1719651032313,-35315.59118824,0.00013799,2]
[330628030,1719651033180,-2109.43741355,0.00013799,2]
[330628031,1719651033192,-4782.84240991,0.00013799,2]
[330628032,1719651033203,-57792.1289883,0.00013799,2]
[330628033,1719651033213,-780.8519,0.00013799,2]
[330628034,1719651033222,-221.12276999,0.00013839,2]
[330628035,1719651033231,-577662.58362205,0.00013849,2]
[330628041,1719651037875,-800.3499945,0.00013514,2]
[330628042,1719651037900,-380.21994964,0.00013514,2]
[330628043,1719651038003,-2910.14726098,0.00013514,2]
[330628044,1719651038014,-9769.98857953,0.0001387,2]
[330628045,1719651038024,-7500.0,0.00013889,2]
[330628046,1719651038035,-5273.88692954,0.00013889,2]
[330628047,1719651038047,-914.0500234,0.00013889,2]
[330628048,1719651038061,-2166.78342138,0.00013889,2]
[330628049,1719651038092,-1251.34130064,0.00013889,2]
[330628050,1719651038105,-729.82228752,0.00013889,2]
[330628051,1719651038118,-1009.91881608,0.00013889,2]
[330628052,1719651038132,-1295.8075908,0.00013889,2]
[330628053,1719651038146,-2301.19829752,0.00013889,2]
[330628054,1719651038171,-542.62704013,0.00013889,2]
[330628055,1719651038190,-6628.30439943,0.00013889,2]
[330628056,1719651038203,-911.62683173,0.00013889,2]
[330628057,1719651038220,-2183.16426548,0.00013889,2]
[330628058,1719651038238,-10987.39192041,0.00013889,2]
[330628059,1719651038256,-8292.34708436,0.00013889,2]
[330628060,1719651038269,-785.60005,0.00013889,2]
[330628061,1719651038291,-5080.1458687,0.00013889,2]
[330628063,1719651038303,-18262.74345492,0.00013889,2]
[330628065,1719651038316,-94640.90408903,0.00013889,2]
[330628067,1719651038328,-4894.76902435,0.00013889,2]
[330628070,1719651038350,-5556.73676619,0.00013889,2]
[330628072,1719651038362,-96041.96561193,0.00013889,2]
[330628075,1719651038375,-39999.87102933,0.00013889,2]
[330628077,1719651038387,-85994.17267297,0.00013889,2]
[330628124,1719651038829,-850.41686623,0.00013889,2]
[330628125,1719651038946,-778.63202683,0.00013889,2]
[330628129,1719651039967,-624.53467435,0.00013889,2]
[330628138,1719651040132,-295183.66186603,0.00013889,2]
[330628139,1719651040144,-170.28142377,0.0001389,2]
[330628140,1719651040154,-39439.6962,0.0001389,2]
[330628141,1719651040164,-499.99,0.00013899,2]
[330628142,1719651040173,-547921.55529333,0.00013989,2]
[330628143,1719651040183,-221.12276999,0.0001399,2]
[330628144,1719651040194,-841023.83812051,0.00014,2]
[330628145,1719651040204,-193.26382296,0.000143,2]
[330628146,1719651040214,-6940.1010684,0.00014662,2]
[330628147,1719651040224,-1000.0,0.00014732,2]
[330628148,1719651040234,-1433.13703051,0.0001483,2]
[330628149,1719651040244,-823.0,0.0001485,2]
[330628150,1719651040255,-904.46149758,0.000149,2]
[330628151,1719651040266,-772.4319689,0.000149,2]
[330628152,1719651040276,-210.0,0.00014966,2]
[330628153,1719651040286,-221.12276999,0.0001499,2]
[330628154,1719651040296,-3986.07453822,0.00015,2]
[330628155,1719651040306,-720859.69917669,0.00015,2]
[330628156,1719651040316,-56649.79177713,0.00015,2]
[330628157,1719651040325,-151.0,0.00015,2]
[330628158,1719651040335,-151.0,0.00015,2]
[330628159,1719651040346,-151.0,0.00015,2]
[330628160,1719651040356,-151.0,0.00015,2]
[330628161,1719651040366,-151.0,0.00015,2]
[330628162,1719651040376,-151.0,0.00015,2]
[330628163,1719651040387,-151.0,0.00015,2]
[330628164,1719651040398,-260.663013,0.00015,2]
[330628165,1719651040407,-260.663013,0.00015,2]
[330628166,1719651040416,-151.0,0.00015,2]
[330628167,1719651040429,-151.0,0.00015,2]
[330628168,1719651040440,-151.0,0.00015,2]
[330628169,1719651040450,-151.0,0.00015,2]
[330628170,1719651040460,-151.0,0.00015,2]
[330628171,1719651040471,-151.0,0.00015,2]
[330628172,1719651040480,-151.0,0.00015,2]
[330628173,1719651040490,-151.0,0.00015,2]
[330628174,1719651040501,-151.0,0.00015,2]
[330628175,1719651040510,-151.0,0.00015,2]
[330628176,1719651040525,-486.185805,0.00015,2]
[330628177,1719651040536,-211.810807,0.00015,2]
[330628178,1719651040546,-486.185805,0.00015,2]
[330628179,1719651040557,-215.1518,0.00015,2]
[330628180,1719651040568,-215.1518,0.00015,2]
[330628182,1719651040579,-151.0,0.00015,2]
[330628183,1719651040590,-151.0,0.00015,2]
[330628184,1719651040601,-174.824253,0.00015,2]
[330628185,1719651040612,-151.0,0.00015,2]
[330628186,1719651040623,-151.0,0.00015,2]
[330628187,1719651040634,-440.537654,0.00015,2]
[330628188,1719651040648,-174.824253,0.00015,2]
[330628189,1719651040659,-440.537654,0.00015,2]
[330628190,1719651040670,-289.990875,0.00015,2]
[330628191,1719651040681,-151.0,0.00015,2]
[330628192,1719651040692,-289.990875,0.00015,2]
[330628193,1719651040703,-518.882803,0.00015,2]
[330628194,1719651040714,-518.882803,0.00015,2]
[330628195,1719651040725,-452.818109,0.00015,2]
[330628196,1719651040736,-452.818109,0.00015,2]
[330628197,1719651040750,-5418.6065,0.00015,2]
[330628198,1719651040762,-5418.6065,0.00015,2]
[330628199,1719651040772,-151.0,0.00015,2]
[330628200,1719651040783,-208.071069,0.00015,2]
[330628201,1719651040794,-151.0,0.00015,2]
[330628202,1719651040805,-208.071069,0.00015,2]
[330628203,1719651040816,-151.0,0.00015,2]
[330628204,1719651040827,-299.321566,0.00015,2]
[330628205,1719651040838,-299.321566,0.00015,2]
[330628206,1719651040848,-151.0,0.00015,2]
[330628207,1719651040859,-151.0,0.00015,2]
[330628208,1719651040871,-2479.95168245,0.00015,2]
[330628209,1719651040882,-151.0,0.00015,2]
[330628210,1719651040894,-151.0,0.00015,2]
[330628211,1719651040904,-724.272263,0.00015,2]
[330628212,1719651040914,-724.272263,0.00015,2]
[330628213,1719651040924,-2858.9077944,0.00015053,2]
[330628214,1719651040935,-6940.1010684,0.00015625,2]
[330628215,1719651040946,-155.76,0.00015715,2]
[330628216,1719651040956,-576.95,0.00015777,2]
[330628217,1719651040967,-2858.9077944,0.00015806,2]
[330628218,1719651040977,-2881.0,0.00016,2]
[330628219,1719651040988,-1433.13703051,0.00016017,2]
[330628220,1719651040998,-10000.0,0.00016047,2]
[330628221,1719651041008,-14809.102,0.00016178,2]
[330628222,1719651041019,-1069.0,0.00016178,2]
[330628223,1719651041029,-1152.0,0.00016316,2]
[330628224,1719651041039,-1000.0,0.00016369,2]
[330628225,1719651041049,-293.0,0.00016418,2]
[330628226,1719651041059,-2858.9077944,0.00016559,2]
[330628227,1719651041070,-161.97,0.00016574,2]
[330628228,1719651041080,-6940.1010684,0.00016588,2]
[330628229,1719651041091,-2000.0,0.00016986,3]
[330628230,1719651041101,-2504.21297721,0.00017,2]
[330628231,1719651041111,-167.01,0.00017089,2]
[330628232,1719651041121,-1433.13703051,0.00017204,2]
[330628233,1719651041131,-2858.9077944,0.00017312,2]
[330628234,1719651041142,-161.97,0.00017403,2]
[330628235,1719651041153,-6940.1010684,0.00017551,2]
[330628236,1719651041163,-1613.0,0.00017926,2]
[330628237,1719651041174,-2376.06489013,0.00017999,2]
[330628238,1719651041184,-370.27430286,0.00018,2]
[330628239,1719651041194,-1115.22387408,0.00018,2]
[330628240,1719651041204,-10525.15074845,0.00018,2]
[330628241,1719651041214,-321.523,0.00018,2]
[330628242,1719651041226,-1000.0,0.00018006,2]
[330628243,1719651041236,-576.95,0.00018041,2]
[330628244,1719651041246,-2858.9077944,0.00018065,2]
[330628245,1719651041256,-4455.29691926,0.00018081,2]
[330628246,1719651041266,-1668.02354345,0.000181,2]
[330628247,1719651041276,-170.28142375,0.00018128,2]
[330628248,1719651041286,-757.0,0.00018227,2]
[330628249,1719651041296,-161.97,0.00018231,2]
[330628250,1719651041306,-1433.13703051,0.0001839,2]
[330628251,1719651041316,-6940.1010684,0.00018513,2]
[330628252,1719651041326,-904.46149757,0.00018523,2]
[330628253,1719651041336,-772.43196888,0.00018523,2]
[330628254,1719651041346,-2858.9077944,0.00018819,2]
[330628255,1719651041360,-625.55024867,0.00018864,2]
[330628256,1719651041371,-160.75,0.000189,2]
[330628257,1719651041381,-160.75,0.000189,2]
[330628258,1719651041391,-155.67697001,0.00018999,2]
[330628259,1719651041405,-161.97,0.0001906,2]
[330628260,1719651041414,-223.01,0.00019178,2]
[330628261,1719651041430,-500.0,0.00019178,2]
[330628262,1719651041440,-400.68055782,0.00019178,2]
[330628263,1719651041450,-500.0,0.00019178,2]
[330628264,1719651041463,-500.0,0.00019178,2]
[330628265,1719651041474,-158.09366154,0.00019178,2]
[330628266,1719651041484,-500.0,0.00019178,2]
[330628267,1719651041494,-496.38141141,0.00019178,2]
[330628268,1719651041507,-497.98557785,0.00019178,2]
[330628269,1719651041517,-615.32989983,0.00019178,2]
[330628270,1719651041527,-500.0,0.00019178,3]
[330628271,1719651041537,-500.0,0.00019178,2]
[330628272,1719651041548,-239.74700928,0.00019178,2]
[330628273,1719651041558,-500.0,0.00019178,2]
[330628274,1719651041569,-150.0,0.00019178,2]
[330628275,1719651041580,-250.0,0.00019178,2]
[330628276,1719651041590,-256.01,0.00019178,2]
[330628277,1719651041601,-300.0,0.00019178,2]
[330628278,1719651041612,-179.76258096,0.00019299,2]
[330628279,1719651041623,-500.0,0.00019315,3]
[330628280,1719651041633,-356.0,0.000194,2]
[330628281,1719651041645,-1000.0,0.000194,2]
[330628282,1719651041655,-225.0,0.000194,2]
[330628283,1719651041665,-500.0,0.00019452,3]
[330628284,1719651041676,-6940.1010684,0.00019476,2]
[330628285,1719651041686,-2858.9077944,0.00019572,2]
[330628286,1719651041696,-1433.13703051,0.00019577,2]
[330628287,1719651041706,-500.0,0.00019589,3]
[330628288,1719651041715,-1000.0,0.00019643,2]
[330628289,1719651041725,-155.76,0.00019643,2]
[330628290,1719651041735,-150.0,0.00019683,2]
[330628291,1719651041745,-2143.0,0.00019694,2]
[330628292,1719651041756,-500.0,0.00019726,3]
[330628293,1719651041766,-500.0,0.00019863,3]
[330628294,1719651041776,-161.97,0.00019889,2]
[330628295,1719651041787,-200.0,0.0001989,7]
[330628296,1719651041797,-160.75,0.0001989,2]
[330628297,1719651041807,-155.0,0.00019899,2]
[330628298,1719651041817,-155.0,0.00019899,2]
[330628299,1719651041826,-279.3356,0.000199,2]
[330628300,1719651041836,-905.4644,0.000199,2]
[330628301,1719651041846,-245000.0,0.000199,2]
[330628302,1719651041856,-151.0,0.000199,2]
[330628303,1719651041865,-151.0,0.000199,2]
[330628304,1719651041875,-151.0,0.000199,2]
[330628305,1719651041885,-151.0,0.000199,2]
[330628306,1719651041897,-151.0,0.000199,2]
[330628307,1719651041907,-151.0,0.000199,2]
[330628308,1719651041917,-151.0,0.000199,2]
[330628309,1719651041929,-260.663013,0.000199,2]
[330628310,1719651041939,-151.0,0.000199,2]
[330628311,1719651041948,-260.663013,0.000199,2]
[330628312,1719651042128,-151.0,0.000199,2]
[330628313,1719651042139,-151.0,0.000199,2]
[330628314,1719651042150,-151.0,0.000199,2]
[330628315,1719651042159,-151.0,0.000199,2]
[330628316,1719651042168,-151.0,0.000199,2]
[330628317,1719651042177,-151.0,0.000199,2]
[330628318,1719651042186,-151.0,0.000199,2]
[330628319,1719651042196,-181.29392,0.000199,2]
[330628320,1719651042205,-151.0,0.000199,2]
[330628321,1719651042215,-151.0,0.000199,2]
[330628322,1719651042224,-486.185805,0.000199,2]
[330628323,1719651042233,-486.185805,0.000199,2]
[330628324,1719651042243,-215.1518,0.000199,2]
[330628325,1719651042252,-215.1518,0.000199,2]
[330628326,1719651042262,-151.0,0.000199,2]
[330628327,1719651042271,-151.0,0.000199,2]
[330628328,1719651042280,-151.0,0.000199,2]
[330628329,1719651042290,-156.125578,0.000199,2]
[330628330,1719651042299,-170.878313,0.000199,2]
[330628331,1719651042309,-156.125578,0.000199,2]
[330628332,1719651042318,-935.012941,0.000199,2]
[330628333,1719651042327,-935.012941,0.000199,2]
[330628334,1719651042336,-151.0,0.000199,2]
[330628335,1719651042346,-151.0,0.000199,2]
[330628336,1719651042355,-151.0,0.000199,2]
[330628337,1719651042364,-152.015289,0.000199,2]
[330628338,1719651042373,-854.499311,0.000199,2]
[330628339,1719651042382,-854.499311,0.000199,2]
[330628340,1719651042391,-151.0,0.000199,2]
[330628341,1719651042401,-151.0,0.000199,2]
[330628342,1719651042410,-151.0,0.000199,2]
[330628343,1719651042419,-174.824253,0.000199,2]
[330628344,1719651042433,-151.0,0.000199,2]
[330628345,1719651042442,-151.0,0.000199,2]
[330628346,1719651042452,-440.537654,0.000199,2]
[330628347,1719651042461,-174.824253,0.000199,2]
[330628348,1719651042470,-440.537654,0.000199,2]
[330628349,1719651042479,-289.990875,0.000199,2]
[330628350,1719651042489,-151.0,0.000199,2]
[330628351,1719651042499,-289.990875,0.000199,2]
[330628352,1719651042510,-518.882803,0.000199,2]
[330628353,1719651042520,-518.882803,0.000199,2]
[330628354,1719651042530,-452.818109,0.000199,2]
[330628355,1719651042540,-452.818109,0.000199,2]
[330628356,1719651042550,-5418.6065,0.000199,2]
[330628357,1719651042559,-5418.6065,0.000199,2]
[330628358,1719651042574,-151.0,0.000199,2]
[330628359,1719651042583,-208.071069,0.000199,2]
[330628360,1719651042594,-151.0,0.000199,2]
[330628361,1719651042604,-208.071069,0.000199,2]
[330628362,1719651042613,-151.0,0.000199,2]
[330628363,1719651042622,-299.321566,0.000199,2]
[330628364,1719651042632,-299.321566,0.000199,2]
[330628365,1719651042642,-161.55427,0.000199,2]
[330628366,1719651042652,-151.0,0.000199,2]
[330628367,1719651042662,-151.0,0.000199,2]
[330628368,1719651042671,-151.0,0.000199,2]
[330628369,1719651042681,-724.272263,0.000199,2]
[330628370,1719651042690,-160.75,0.0001999,2]
[330628371,1719651042702,-151.0,0.00019996,2]
[330628372,1719651042712,-10000.0,0.00019996,2]
[330628373,1719651042721,-10000.0,0.00019996,2]
[330628374,1719651042730,-10000.0,0.00019996,2]
[330628375,1719651042739,-2634.23113041,0.00019996,2]
[330628376,1719651042749,-43816.9737325,0.00019998,2]
[330628377,1719651042759,-151.986498,0.00019998,2]
[330628378,1719651042768,-2459.3886179,0.00019998,2]
[330628379,1719651042778,-370.0098718,0.00019998,2]
[330628380,1719651042789,-1975.3763972,0.00019998,2]
[330628382,1719651042798,-903.17223617,0.00019999,2]
[330628384,1719651042808,-1354.75835426,0.00019999,2]
[330628386,1719651042818,-212326.70163145,0.0002,2]
[330628388,1719651042867,-571.99609623,0.0002,2]
[330628391,1719651042879,-443.43736833,0.0002,2]
[330628425,1719651044738,-854.210001,0.00017444,2]
[330628426,1719651044750,-584.67017367,0.00017444,2]
[330628427,1719651044880,-827.19049739,0.00017444,2]
[330628428,1719651044892,-2733.92932794,0.00017444,2]
[330628429,1719651044902,-724.272263,0.000199,2]
[330628430,1719651044911,-532252.38609291,0.0002,2]
[330628431,1719651045160,-623.25,0.0002,2]
[330628433,1719651046537,-369.230408,0.00015,2]
[330628434,1719651046547,-199.895,0.00016178,2]
[330628435,1719651046556,-2326.82790836,0.0002,2]
[330628442,1719651319739,5596.79021776,0.00011098,2]
[330628443,1719651328679,6123.44302264,0.00011098,2]
[330628445,1719651347145,2384.45343268,0.00011098,2]
[330628446,1719651358490,1279.79304108,0.00011098,2]
[330628448,1719651379998,1463.36066829,0.00011098,2]
[330628449,1719651403976,1275.65882337,0.00011098,2]
[330628453,1719651456331,203.21171112,0.00011098,2]
[330628454,1719651460559,193.50102493,0.00011098,2]
[330628456,1719651509007,156.22942555,0.00011098,2]
[330628458,1719651514494,155.0,0.00011098,2]
[330628459,1719651518595,155.22998674,0.00011098,2]
[330628460,1719651522130,198.28959539,0.00011098,2]
[330628461,1719651522172,370.00600628,0.00011098,2]
[330628462,1719651522217,156.55254645,0.00011098,2]
[330628464,1719651529487,155.0,0.00011098,2]
[330628465,1719651555261,155.0,0.00011098,2]
[330628468,1719651602124,548.0,0.00025,60]
[330628474,1719651747131,161.29191746,0.00011098,2]
[330628476,1719651794565,532.87,0.00010316,2]
[330628478,1719651825993,451.13424901,0.00011098,2]
[330628479,1719651829046,193.50102493,0.00011098,2]
[330628483,1719651943517,155.0,0.00011098,2]
[330628486,1719652155100,282.13296175,0.00011098,2]
[330628492,1719652232242,-760.55939495,0.00011199,2]
[330628493,1719652232255,-14739.97915569,0.00011199,2]
[330628494,1719652232264,-10541.24799187,0.00011199,2]
[330628495,1719652232275,-2060.0,0.00011671,2]
[330628496,1719652232286,-1627.12,0.00011817,2]
[330628497,1719652232297,-500.0,0.00011817,2]
[330628498,1719652232306,-155.76,0.00011835,2]
[330628499,1719652232316,-23890.0,0.00011872,2]
[330628500,1719652232326,-200.0,0.0001189,2]
[330628501,1719652232336,-2720.34,0.0001189,2]
[330628502,1719652232345,-20000.0,0.00011892,2]
[330628503,1719652232355,-1240.62,0.00011921,2]
[330628504,1719652232365,-985.27,0.00011924,2]
[330628505,1719652232375,-8371.41403237,0.00011924,2]
[330628506,1719652232387,-2411.95134433,0.00011924,2]
[330628507,1719652232405,-384.38674592,0.00011924,2]
[330628508,1719652232416,-14507.90531229,0.00011924,2]
[330628509,1719652232438,-570.09,0.00011924,2]
[330628510,1719652232449,-1068.44256509,0.00011924,2]
[330628511,1719652232459,-457.38243491,0.0001194,2]
[330628512,1719652232471,-75.88756509,0.0001194,2]
[330628513,1719652232481,-265.80096495,0.00011975,2]
[330628514,1719652232492,-250.33780553,0.00011975,2]
[330628516,1719652232605,-1638.61122952,0.00011975,2]
[330628517,1719652232616,-298.48,0.00011983,2]
[330628518,1719652232627,-250.0,0.00011997,2]
[330628519,1719652232637,-703.69,0.00012017,2]
[330628520,1719652232647,-5445.83,0.00012017,2]
[330628521,1719652232656,-400.69,0.00012055,2]
[330628522,1719652232668,-155.0,0.00012273,2]
[330628523,1719652232678,-478.14,0.00012343,2]
[330628524,1719652232688,-438.28,0.00012461,2]
[330628525,1719652232698,-1000.0,0.00012489,2]
[330628526,1719652232708,-169.26,0.00012513,2]
[330628527,1719652232720,-9127.63,0.00012523,2]
[330628528,1719652232730,-1000.0,0.00012524,2]
[330628529,1719652232739,-1000.0,0.00012558,2]
[330628530,1719652232748,-532.87,0.0001258,2]
[330628531,1719652232758,-1000.0,0.00012592,2]
[330628532,1719652232768,-842.78,0.00012612,2]
[330628533,1719652232778,-1000.0,0.00012626,2]
[330628534,1719652232787,-2679.75,0.00012641,2]
[330628535,1719652232797,-1000.0,0.00012661,2]
[330628536,1719652232806,-1000.0,0.00012695,2]
[330628537,1719652232816,-1000.0,0.00012729,2]
[330628538,1719652232827,-1000.0,0.00012763,2]
[330628539,1719652232836,-1000.0,0.00012797,2]
[330628540,1719652232847,-1000.0,0.00012832,2]
[330628541,1719652232857,-1000.0,0.00012866,2]
[330628542,1719652232868,-1000.0,0.000129,2]
[330628543,1719652232882,-250.0,0.000129,2]
[330628544,1719652232892,-1228.95035488,0.000129,2]
[330628545,1719652232906,-3971.07024,0.000129,2]
[330628546,1719652232919,-3832.64287863,0.000129,2]
[330628552,1719652238155,-399.70833916,0.00012934,2]
[330628553,1719652238189,-600.29166084,0.00012934,2]
[330628554,1719652238199,-1000.0,0.00012969,2]
[330628555,1719652238209,-1000.0,0.00013003,2]
[330628556,1719652238218,-1000.0,0.00013037,2]
[330628557,1719652238227,-195.38298828,0.0001304,2]
[330628558,1719652238239,-184.38,0.00013053,2]
[330628559,1719652238248,-625.71,0.00013061,2]
[330628560,1719652238258,-499.99,0.00013061,2]
[330628561,1719652238596,-1000.0,0.00013071,2]
[330628562,1719652238611,-3439.57,0.00013106,2]
[330628563,1719652238621,-967.33,0.00013106,2]
[330628564,1719652238631,-1000.0,0.00013106,2]
[330628565,1719652238640,-2669.04052217,0.0001312,2]
[330628566,1719652238661,-4072.87169574,0.0001312,2]
[330628567,1719652238674,-103396.74901413,0.0001312,2]
[330628568,1719652238685,-822.49017547,0.0001312,2]
[330628569,1719652238697,-10858.90753303,0.0001312,2]
[330628570,1719652238710,-125279.94105946,0.0001312,2]
[330628571,1719652238719,-1000.0,0.0001314,2]
[330628572,1719652238728,-788.43,0.00013236,2]
[330628573,1719652238739,-985.27,0.00013414,2]
[330628574,1719652238748,-684.44148417,0.00013452,2]
[330628575,1719652238758,-275.83120789,0.00013452,2]
[330628576,1719652238768,-543.3375049,0.00013482,2]
[330628577,1719652238778,-1012.2,0.00013511,2]
[330628578,1719652238787,-992.7334,0.00013522,2]
[330628579,1719652238797,-195.38298828,0.00013629,2]
[330628580,1719652238807,-156.0208,0.00013636,2]
[330628581,1719652238816,-100099.4236,0.00013659,2]
[330628582,1719652238826,-6127.86,0.00013699,2]
[330628583,1719652238836,-516.57,0.00013699,2]
[330628584,1719652238846,-201.42,0.00013699,2]
[330628585,1719652238855,-553.54,0.00013699,2]
[330628586,1719652238865,-777.81,0.00013699,2]
[330628587,1719652238878,-344.88,0.00013699,2]
[330628588,1719652238888,-29909.4434,0.00013699,2]
[330628589,1719652238898,-20187.2453,0.00013749,2]
[330628590,1719652238908,-2082.03032052,0.0001379,2]
[330628591,1719652238918,-7457.51120018,0.00013799,2]
[330628592,1719652238931,-7500.0,0.00013889,2]
[330628593,1719652238940,-168.02035805,0.00013899,2]
[330628594,1719652238952,-755.58438261,0.00013899,2]
[330628595,1719652238962,-7457.51120018,0.00013918,2]
[330628596,1719652238971,-173.26,0.00013949,2]
[330628597,1719652238980,-180.91863003,0.00013979,2]
[330628598,1719652238990,-628506.82911428,0.00013989,2]
[330628599,1719652239000,-547921.55529333,0.00013999,2]
[330628600,1719652239010,-755.58438259,0.00014059,2]
[330628601,1719652239020,-195.38298828,0.00014218,2]
[330628602,1719652239030,-755.58438259,0.00014218,2]
[330628603,1719652239041,-253.23,0.00014318,2]
[330628604,1719652239051,-2082.03032052,0.0001444,2]
[330628605,1719652239062,-532.87,0.00014844,2]
[330628606,1719652239072,-985.27,0.00014905,2]
[330628607,1719652239082,-2479.95168245,0.00015,2]
[330628608,1719652239092,-150.0,0.00015,15]
[330628609,1719652239102,-7457.51120018,0.00015001,2]
[330628610,1719652239112,-300.0,0.00015068,2]
[330628611,1719652239122,-2082.03032052,0.00015458,2]
[330628612,1719652239132,-5171.0,0.00015888,2]
[330628613,1719652239142,-1661.0,0.00015888,2]
[330628614,1719652239153,-5803.0,0.00015888,2]
[330628615,1719652239163,-290.928,0.00015888,2]
[330628616,1719652239172,-38173.0,0.00015888,2]
[330628617,1719652239183,-1068.0,0.00015888,2]
[330628618,1719652239193,-666.0,0.000159,2]
[330628619,1719652239203,-2592.0,0.000159,2]
[330628620,1719652239213,-10000.0,0.00016047,2]
[330628621,1719652239223,-7457.51120018,0.00016085,2]
[330628622,1719652239233,-360.939,0.00016178,2]
[330628623,1719652239243,-1655.0,0.00016178,2]
[330628624,1719652239254,-1827.314,0.00016178,2]
[330628625,1719652239264,-1276.835,0.00016178,2]
[330628626,1719652239274,-617.0,0.00016178,2]
[330628627,1719652239285,-812.0,0.00016178,2]
[330628628,1719652239294,-450.73,0.00016178,2]
[330628629,1719652239305,-150.736,0.00016178,2]
[330628630,1719652239315,-1313.093,0.00016178,2]
[330628631,1719652239326,-2427.626,0.00016178,2]
[330628632,1719652239336,-1998.826,0.00016178,2]
[330628633,1719652239345,-3223.999,0.00016178,2]
[330628634,1719652239355,-547.0,0.00016178,2]
[330628635,1719652239365,-985.27,0.00016395,2]
[330628636,1719652239375,-300.0,0.00016438,2]
[330628637,1719652239385,-2082.03032052,0.00016476,2]
[330628638,1719652239396,-192.03,0.00016712,2]
[330628639,1719652239406,-532.87,0.00017108,2]
[330628640,1719652239416,-7457.51120018,0.00017168,2]
[330628641,1719652239426,-2082.03032052,0.00017494,2]
[330628642,1719652239436,-985.27,0.00017886,2]
[330628643,1719652239446,-167.0,0.00017972,2]
[330628644,1719652239456,-151.0,0.00018225,2]
[330628645,1719652239465,-685.0,0.00018227,2]
[330628646,1719652239475,-2082.03032052,0.00018512,2]
[330628647,1719652239485,-169.26,0.0001877,2]
[330628648,1719652239494,-151.0,0.00018821,2]
[330628649,1719652239504,-155.21194377,0.00018899,2]